bitfinex/quotes_SOLUSD_20240702
["timestamp","ask_amount","ask_price","bid_price","bid_amount"]
[1719886999446,12.2,148.39,148.36,106.7403]
[1719887000158,18.9386,148.4,148.36,106.7403]
[1719887000545,18.9386,148.4,148.37,1.34783588]
[1719887000745,18.9386,148.4,148.36,108.08814592]
[1719887001030,12.2,148.4,148.37,6.7398]
[1719887001547,18.9386,148.4,148.36,101.34784592]
[1719887002065,34.6236,148.41,148.38,100.0]
[1719887002357,27.8854,148.41,148.38,101.02224279]
[1719887002933,12.2,148.41,148.38,101.02224279]
[1719887003258,6.7377,148.42,148.38,106.7393]
[1719887003461,32.2,148.41,148.38,106.7393]
[1719887003656,12.2,148.4,148.38,106.7393]
[1719887003864,18.9389,148.4,148.36,16.8503]
[1719887004066,12.2,148.39,148.33,116.8534]
[1719887004368,12.2,148.37,148.33,116.8534]
[1719887004539,12.2,148.37,148.35,100.0]
[1719887004940,12.2,148.37,148.35,106.7407]
[1719887005959,12.2,148.37,148.34,6.7412]
[1719887006185,12.2,148.37,148.35,100.0]
[1719887006366,18.9394,148.38,148.35,100.0]
[1719887006662,12.2,148.37,148.35,100.0]
[1719887007960,12.2,148.36,148.34,6.7412]
[1719887008154,12.2,148.35,148.33,123.5949]
[1719887008470,6.5654,148.39,148.33,123.5949]
[1719887008471,12.2,148.36,148.33,123.5949]
[1719887009070,12.2,148.36,148.34,6.7411]
[1719887009357,12.2,148.36,148.33,123.595]
[1719887010047,12.2,148.36,148.33,116.8534]
[1719887010455,12.2,148.35,148.33,116.8534]
[1719887010768,12.2,148.35,148.33,100.0]
[1719887012651,12.2,148.34,148.32,6.742]
[1719887013702,12.2,148.34,148.33,6.7417]
[1719887013887,12.2,148.35,148.33,106.7417]
[1719887014061,12.2,148.36,148.33,106.7417]
[1719887014567,12.2,148.35,148.32,23.5971]
[1719887015367,12.2,148.35,148.33,6.7417]
[1719887016370,12.2,148.35,148.32,23.5971]
[1719887017278,12.2,148.34,148.32,16.8551]
[1719887017449,12.2,148.34,148.31,100.0]
[1719887017653,12.2,148.33,148.31,6.7425]
[1719887018963,12.2,148.33,148.31,106.7425]
[1719887019779,12.2,148.33,148.32,6.7421]
[1719887019968,12.2,148.34,148.32,6.7421]
[1719887020294,12.2,148.34,148.31,123.5987]
[1719887022091,12.2,148.33,148.31,123.5987]
[1719887024370,12.2,148.34,148.31,123.5987]
[1719887025495,18.9413,148.34,148.31,100.0]
[1719887025790,12.2,148.33,148.31,100.0]
[1719887027090,12.2,148.34,148.31,100.0]
[1719887027265,12.2,148.34,148.31,106.7425]
[1719887027985,12.2,148.34,148.31,100.0]
[1719887030385,6.7421,148.32,148.31,100.0]
[1719887030693,18.9418,148.33,148.3,100.0]
[1719887031682,12.2,148.33,148.3,106.7429]
[1719887033393,12.2,148.33,148.3,108.0912743]
[1719887033691,12.2,148.34,148.3,108.0912743]
[1719887033990,15.829,148.36,148.33,100.0]
[1719887034193,32.2,148.35,148.33,100.0]
[1719887034670,20.0,148.35,148.33,100.0]
[1719887034869,20.0,148.35,148.33,101.34819622]
[1719887035310,20.0,148.35,148.33,108.08979622]
[1719887035470,20.0,148.35,148.33,100.0]
[1719887035769,20.0,148.36,148.33,100.0]
[1719887036449,26.7405,148.36,148.33,100.0]
[1719887036565,38.9405,148.36,148.33,100.0]
[1719887039872,20.0,148.36,148.33,106.7413]
[1719887040069,12.2,148.36,148.33,106.7413]
[1719887040378,20.0,148.35,148.33,100.0]
[1719887040776,26.7408,148.35,148.33,100.0]
[1719887041731,20.0,148.35,148.33,100.0]
[1719887042695,12.2,148.34,148.31,100.0]
[1719887043083,6.742,148.33,148.31,100.0]
[1719887043272,18.942,148.33,148.31,100.0]
[1719887043974,6.7422,148.32,148.29,116.8582]
[1719887044482,18.9418,148.33,148.31,100.0]
[1719887045342,6.7418,148.33,148.31,100.0]
[1719887045672,18.9418,148.33,148.31,100.0]
[1719887046697,18.4418,148.33,148.31,100.0]
[1719887048712,18.4418,148.33,148.29,116.8582]
[1719887048875,18.4418,148.33,148.31,100.0]
[1719887049269,6.7421,148.32,148.31,100.0]
[1719887050409,18.9418,148.33,148.31,100.0]
[1719887052377,12.2,148.32,148.31,100.0]
[1719887052575,12.2,148.32,148.29,123.6017]
[1719887055714,12.2,148.32,148.31,100.0]
[1719887056089,12.2,148.32,148.29,100.0]
[1719887056806,12.2,148.31,148.29,100.0]
[1719887057696,12.2,148.31,148.28,6.7438]
[1719887058399,12.2,148.31,148.29,100.0]
[1719887058627,12.2,148.31,148.28,6.7438]
[1719887058797,12.2,148.31,148.29,100.0]
[1719887061121,12.2,148.31,148.29,106.7434]
[1719887061710,12.2,148.31,148.29,6.7434]
[1719887061917,12.2,148.3,148.27,106.7442]
[1719887062092,32.2,148.3,148.27,106.7442]
[1719887067662,32.2,148.3,148.27,100.0]
[1719887068017,38.9431,148.3,148.27,100.0]
[1719887068313,32.2,148.3,148.27,100.0]
[1719887071606,38.9431,148.3,148.27,100.0]
[1719887073016,38.9431,148.3,148.26,16.8615]
[1719887073017,12.2,148.28,148.26,16.8615]
[1719887074133,12.2,148.27,148.25,100.0]
[1719887080047,12.2,148.27,148.25,101.34891702]
[1719887080239,12.2,148.28,148.25,108.09411702]
[1719887081728,6.7436,148.29,148.25,108.09411702]
[1719887081922,20.0,148.28,148.25,108.09411702]
[1719887083926,20.0,148.28,148.25,101.34891702]
[1719887084634,26.744,148.28,148.25,101.34891702]
[1719887084826,16.2171,148.31,148.27,100.0]
[1719887085124,20.0,148.3,148.27,100.0]
[1719887085606,26.743,148.3,148.27,101.34866082]
[1719887088012,26.7431,148.3,148.27,100.0]
[1719887089709,6.0902,148.34,148.3,100.0]
[1719887089929,32.2,148.33,148.3,100.0]
[1719887090126,26.7418,148.33,148.3,100.0]
[1719887090433,20.0,148.33,148.3,100.0]
[1719887090813,20.0,148.33,148.31,0.45091625]
[1719887091009,20.0,148.33,148.3,100.0]
[1719887091333,6.7426,148.31,148.3,100.0]
[1719887091930,6.7423,148.32,148.3,100.0]
[1719887093646,6.7423,148.32,148.31,1.3484063]
[1719887093830,18.9418,148.33,148.31,1.3484063]
[1719887094331,26.7413,148.34,148.32,100.0]
[1719887095344,13.60097623,148.38,148.34,100.0]
[1719887095525,6.7408,148.35,148.34,100.0]
[1719887095921,6.7416,148.34,148.32,100.0]
[1719887097820,6.7405,148.36,148.32,100.0]
[1719887098022,18.9405,148.36,148.33,1.34814978]
[1719887098224,6.7409,148.35,148.32,100.0]
[1719887098446,18.9404,148.36,148.33,1.34815172]
[1719887098821,18.9404,148.36,148.32,100.0]
[1719887099348,6.5942,148.38,148.34,100.0]
[1719887099518,20.0,148.37,148.34,100.0]
[1719887099719,26.74,148.37,148.34,100.0]
[1719887100145,38.94,148.37,148.34,100.0]
[1719887100446,6.7405,148.36,148.34,100.0]
[1719887100748,6.7408,148.35,148.34,100.0]
[1719887100955,6.7404,148.36,148.34,100.0]
[1719887101523,6.7408,148.35,148.34,100.0]
[1719887101731,6.7405,148.36,148.34,100.0]
[1719887102544,6.7408,148.35,148.34,100.0]
[1719887102844,6.7405,148.36,148.34,100.0]
[1719887103447,38.94,148.37,148.34,100.0]
[1719887104124,6.7404,148.36,148.34,100.0]
[1719887106061,6.7408,148.35,148.34,100.0]
[1719887106543,6.7408,148.35,148.32,100.0]
[1719887108051,18.9404,148.36,148.32,100.0]
[1719887109055,6.7408,148.35,148.32,100.0]
[1719887109219,18.9404,148.36,148.32,100.0]
[1719887109466,6.7404,148.36,148.32,106.7419]
[1719887109645,6.7404,148.36,148.32,118.9419]
[1719887109834,6.7404,148.36,148.34,100.0]
[1719887110032,32.2,148.37,148.34,100.0]
[1719887110033,20.0,148.37,148.34,100.0]
[1719887110234,20.0,148.38,148.34,100.0]
[1719887110448,32.2,148.38,148.34,106.7411]
[1719887110727,20.0,148.38,148.34,118.9411]
[1719887111654,26.7396,148.38,148.34,118.9411]
[1719887112450,20.0,148.38,148.36,100.0]
[1719887113457,32.2,148.38,148.36,100.0]
[1719887113834,38.9398,148.38,148.36,100.0]
[1719887117986,18.9399,148.37,148.34,100.0]
[1719887118133,18.9399,148.37,148.32,100.0]
[1719887118134,12.2,148.37,148.32,100.0]
[1719887118334,26.7404,148.36,148.32,100.0]
[1719887118570,12.2,148.36,148.33,6.7414]
[1719887118808,18.9403,148.36,148.32,106.7418]
[1719887119264,12.2,148.37,148.33,6.7416]
[1719887119441,20.0,148.36,148.33,6.7416]
[1719887120236,20.0,148.36,148.34,106.7412]
[1719887120438,20.0,148.37,148.34,106.7412]
[1719887121147,20.0,148.37,148.34,100.0]
[1719887121452,38.94,148.37,148.34,100.0]
[1719887124454,6.7405,148.36,148.34,100.0]
[1719887124648,18.9405,148.36,148.34,100.0]
[1719887126548,12.2,148.35,148.31,16.8561]
[1719887126749,18.9411,148.35,148.31,16.8561]
[1719887127177,18.9411,148.35,148.31,23.5986]
[1719887127577,18.9411,148.35,148.32,100.0]
[1719887127784,6.7413,148.34,148.31,16.8561]
[1719887127966,6.7417,148.33,148.3,100.0]
[1719887128166,18.9417,148.33,148.3,100.0]
[1719887128483,18.9417,148.33,148.3,106.743]
[1719887128484,12.2,148.33,148.3,106.743]
[1719887128684,6.7413,148.34,148.3,106.743]
[1719887128685,18.9413,148.34,148.3,106.743]
[1719887129954,12.2,148.33,148.3,106.743]
[1719887133490,12.2,148.33,148.31,6.7426]
[1719887134653,12.2,148.34,148.31,6.7426]
[1719887137582,12.2,148.34,148.32,100.0]
[1719887141197,12.2,148.34,148.32,106.742]
[1719887141380,12.2,148.35,148.32,106.742]
[1719887143205,12.2,148.35,148.32,100.0]
[1719887144183,18.9408,148.35,148.32,100.0]
[1719887144385,6.7405,148.36,148.32,106.7418]
[1719887144693,6.7405,148.36,148.33,1.3482625]
[1719887144694,20.0,148.35,148.33,1.3482625]
[1719887145708,20.0,148.35,148.34,100.0]
[1719887146298,26.7408,148.35,148.34,100.0]
[1719887146697,38.9408,148.35,148.34,100.0]
[1719887147385,38.9408,148.35,148.32,100.0]
[1719887149603,26.7408,148.35,148.32,100.0]
[1719887150417,20.0,148.35,148.32,100.0]
[1719887150721,20.0,148.35,148.33,1.34817217]
[1719887151612,20.0,148.35,148.32,100.0]
[1719887152599,20.0,148.35,148.34,100.0]
[1719887153326,26.7408,148.35,148.34,100.0]
[1719887154400,6.7405,148.36,148.34,100.0]
[1719887156219,6.74,148.37,148.34,100.0]
[1719887156518,20.0,148.36,148.34,100.0]
[1719887157219,26.7403,148.36,148.34,100.0]
[1719887159293,20.0,148.36,148.34,100.0]
[1719887160820,6.74,148.37,148.34,100.0]
[1719887161037,6.7394,148.38,148.34,106.7411]
[1719887161223,20.0,148.37,148.34,106.7411]
[1719887162225,20.0,148.37,148.34,118.9411]
[1719887162931,26.7399,148.37,148.34,112.2]
[1719887163140,26.7399,148.37,148.34,100.0]
[1719887163338,20.0,148.37,148.34,106.7412]
[1719887163758,20.0,148.37,148.34,118.9412]
[1719887164307,13.45853396,148.41,148.37,100.0]
[1719887164534,6.7384,148.41,148.39,100.0]
[1719887170027,12.2,148.42,148.39,100.0]
[1719887170215,20.0,148.41,148.39,116.8472]
[1719887170421,20.0,148.41,148.39,123.5859]
[1719887170615,20.0,148.41,148.39,116.8472]
[1719887171368,20.0,148.41,148.39,100.0]
[1719887175222,26.7381,148.41,148.39,100.0]
[1719887175959,6.7385,148.4,148.38,100.0]
[1719887176958,38.9382,148.41,148.38,100.0]
[1719887177245,26.7382,148.41,148.38,100.0]
[1719887178246,20.0,148.41,148.38,106.7394]
[1719887178840,20.0,148.41,148.38,100.0]
[1719887182149,26.7381,148.41,148.38,100.0]
[1719887188460,6.7385,148.4,148.38,100.0]
[1719887191458,6.7395,148.38,148.36,100.0]
[1719887191668,6.7395,148.38,148.35,100.0]
[1719887191955,6.7399,148.37,148.35,100.0]
[1719887192159,18.9399,148.37,148.33,116.8542]
[1719887193124,12.2,148.36,148.3,16.857]
[1719887193273,16.1339,148.38,148.31,100.0]
[1719887193439,20.0,148.37,148.31,100.0]
[1719887193647,12.2,148.35,148.31,100.0]
[1719887193961,12.2,148.35,148.31,106.7425]
[1719887194335,18.9408,148.35,148.31,106.7425]
[1719887194731,12.2,148.34,148.31,106.7425]
[1719887195037,12.2,148.34,148.31,100.0]
[1719887195366,20.0,148.37,148.34,106.7409]
[1719887195549,20.0,148.38,148.35,1.34799678]
[1719887195860,20.0,148.38,148.34,118.9409]
[1719887196664,6.7402,148.37,148.34,100.0]
[1719887196847,20.0,148.36,148.34,100.0]
[1719887197051,20.0,148.36,148.34,101.34805152]
[1719887198449,20.0,148.36,148.34,100.0]
[1719887198645,26.7403,148.36,148.34,100.0]
[1719887198964,18.9408,148.35,148.31,106.7422]
[1719887199168,12.2,148.35,148.31,100.0]
[1719887199401,38.9406,148.36,148.33,100.0]
[1719887199550,6.7409,148.35,148.31,100.0]
[1719887199750,18.9409,148.35,148.31,100.0]
[1719887200567,18.9409,148.35,148.31,106.7425]
[1719887201077,18.9409,148.35,148.33,100.0]
[1719887201405,38.9405,148.36,148.33,100.0]
[1719887204358,20.0,148.36,148.34,1.34815109]
[1719887207849,20.0,148.36,148.35,100.0]
[1719887210278,22.82649003,148.42,148.37,100.0]
[1719887210457,6.7386,148.4,148.37,100.0]
[1719887210772,15.0009,148.42,148.37,100.0]
[1719887210773,18.9382,148.41,148.37,100.0]
[1719887211275,6.7385,148.4,148.37,100.0]
[1719887211479,6.7391,148.39,148.37,100.0]
[1719887213177,18.9386,148.4,148.37,100.0]
[1719887213378,18.9381,148.41,148.37,100.0]
[1719887213886,20.0,148.4,148.37,100.0]
[1719887214660,26.7385,148.4,148.37,100.0]
[1719887214860,38.9385,148.4,148.37,100.0]
[1719887216580,6.739,148.39,148.37,100.0]
[1719887217182,18.939,148.39,148.37,100.0]
[1719887218394,32.2,148.4,148.37,100.0]
[1719887218558,20.0,148.4,148.39,100.0]
[1719887219460,20.0,148.41,148.39,100.0]
[1719887220163,18.9377,148.42,148.39,100.0]
[1719887220365,12.2,148.43,148.41,100.0]
[1719887220577,20.0,148.42,148.41,100.0]
[1719887220766,23.29369003,148.46,148.41,100.0]
[1719887220968,12.2,148.45,148.41,100.0]
[1719887221182,18.9365,148.45,148.41,100.0]
[1719887221982,20.0,148.44,148.41,100.0]
[1719887222291,26.7367,148.44,148.42,1.34734374]
[1719887222686,26.7367,148.44,148.41,100.0]
[1719887222687,38.9367,148.44,148.41,100.0]
[1719887224383,6.7372,148.43,148.41,100.0]
[1719887224574,6.7379,148.42,148.39,100.0]
[1719887229092,18.9373,148.43,148.39,100.0]
[1719887229267,26.7367,148.44,148.41,100.0]
[1719887230482,38.9367,148.44,148.41,100.0]
[1719887231280,26.7367,148.44,148.41,100.0]
[1719887232194,20.0,148.44,148.43,100.0]
[1719887233904,26.7367,148.44,148.43,100.0]
[1719887234897,20.0,148.44,148.43,100.0]
[1719887237378,26.7367,148.44,148.43,100.0]
[1719887237577,38.9367,148.44,148.43,100.0]
[1719887237790,32.2,148.44,148.4,100.0]
[1719887238287,20.0,148.44,148.4,100.0]
[1719887238485,12.2,148.44,148.4,100.0]
[1719887239296,6.7373,148.43,148.4,112.2]
[1719887239794,20.0,148.45,148.43,100.0]
[1719887241701,26.7363,148.45,148.43,100.0]
[1719887244490,40.71259003,148.5,148.45,100.0]
[1719887244685,12.2,148.48,148.45,100.0]
[1719887244889,6.7353,148.47,148.45,100.0]
[1719887245921,6.7358,148.46,148.45,100.0]
[1719887249415,12.2,148.46,148.4,100.0]
[1719887249711,12.2,148.43,148.38,123.5878]
[1719887249903,18.9373,148.43,148.38,123.5878]
[1719887250113,6.7376,148.42,148.38,123.5878]
[1719887250485,6.7376,148.42,148.4,100.0]
[1719887251415,12.2,148.43,148.4,100.0]
[1719887251416,18.9372,148.43,148.4,100.0]
[1719887253314,12.2,148.43,148.4,100.0]
[1719887253515,12.2,148.43,148.4,101.34745057]
[1719887254096,12.2,148.43,148.4,100.0]
[1719887260022,12.2,148.43,148.38,100.0]
[1719887260230,15.1668,148.45,148.38,100.0]
[1719887260231,12.2,148.41,148.38,100.0]
[1719887261324,12.2,148.41,148.38,106.7394]
[1719887262519,12.2,148.4,148.37,23.5892]
[1719887263006,12.2,148.38,148.35,6.7406]
[1719887263322,12.2,148.38,148.36,100.0]
[1719887265535,12.2,148.38,148.36,106.7403]
[1719887266634,12.2,148.39,148.36,106.7403]
[1719887267008,12.2,148.38,148.36,106.7403]
[1719887271536,12.2,148.38,148.36,100.0]
[1719887271929,12.2,148.37,148.35,6.7406]
[1719887272442,18.9405,148.36,148.32,106.742]
[1719887272742,12.2,148.35,148.33,6.7416]
[1719887273522,6.74,148.37,148.33,6.7416]
[1719887273727,20.0,148.36,148.33,6.7416]
[1719887273921,20.0,148.36,148.32,106.742]
[1719887274425,20.0,148.36,148.33,6.7417]
[1719887275946,20.0,148.36,148.32,106.742]
[1719887279041,20.0,148.36,148.34,100.0]
[1719887279527,20.0,148.37,148.34,100.0]
[1719887279726,26.74,148.37,148.34,100.0]
[1719887280121,6.7404,148.36,148.34,100.0]
[1719887280532,26.74,148.37,148.34,100.0]
[1719887281914,6.74,148.37,148.34,100.0]
[1719887282244,12.2,148.37,148.36,100.0]
[1719887282413,20.0,148.37,148.36,100.0]
[1719887283349,32.2,148.37,148.36,100.0]
[1719887283845,38.9399,148.37,148.36,100.0]
[1719887285520,6.7408,148.35,148.34,100.0]
[1719887285737,6.7408,148.35,148.32,100.0]
[1719887285954,6.7414,148.34,148.32,100.0]
[1719887286629,18.9407,148.36,148.32,100.0]
[1719887289260,18.9407,148.36,148.34,100.0]
[1719887289564,6.7407,148.36,148.34,100.0]
[1719887294460,6.7408,148.35,148.34,100.0]
[1719887295128,18.9405,148.36,148.34,100.0]
[1719887295563,18.9405,148.36,148.32,100.0]
[1719887296147,6.7408,148.35,148.32,100.0]
[1719887297466,12.2,148.36,148.32,106.742]
[1719887297467,18.9404,148.36,148.32,106.742]
[1719887297961,6.7404,148.36,148.32,106.742]
[1719887298273,26.74,148.37,148.33,6.7415]
[1719887298477,26.7405,148.36,148.32,118.942]
[1719887298773,38.9405,148.36,148.32,106.742]
[1719887301480,26.7405,148.36,148.32,106.742]
[1719887303275,26.7405,148.36,148.32,118.942]
[1719887303484,20.0,148.36,148.35,100.0]
[1719887304568,26.7403,148.36,148.35,100.0]
[1719887317776,6.7408,148.35,148.33,100.0]
[1719887318162,6.7408,148.35,148.32,100.0]
[1719887319882,18.9408,148.35,148.32,100.0]
[1719887320662,6.7408,148.35,148.32,100.0]
[1719887321760,6.7414,148.34,148.32,100.0]
[1719887324177,6.7409,148.35,148.32,100.0]
[1719887324981,6.7409,148.35,148.33,1.34811306]
[1719887326089,6.7409,148.35,148.32,100.0]
[1719887328585,20.0,148.33,148.3,100.0]
[1719887328767,20.0,148.33,148.32,100.0]
[1719887335576,26.7417,148.33,148.32,100.0]
[1719887335897,38.9417,148.33,148.32,100.0]
[1719887336265,38.9417,148.33,148.29,16.8585]
[1719887336266,26.7417,148.33,148.3,100.0]
[1719887336679,20.0,148.33,148.3,100.0]
[1719887336882,6.7422,148.32,148.3,100.0]
[1719887339605,38.9418,148.33,148.3,100.0]
[1719887340295,26.7418,148.33,148.3,100.0]
[1719887342895,26.7418,148.33,148.28,106.7438]
[1719887342896,6.7423,148.32,148.28,106.7438]
[1719887343070,12.2,148.31,148.26,100.4523196]
[1719887343272,12.2,148.29,148.26,0.4523196]
[1719887343584,6.744,148.28,148.26,0.4523196]
[1719887343785,18.9436,148.29,148.26,0.4523196]
[1719887343978,12.2,148.28,148.26,0.4523196]
[1719887344498,18.944,148.28,148.26,0.4523196]
[1719887344676,18.944,148.28,148.26,100.4523196]
[1719887344876,6.7436,148.29,148.26,100.4523196]
[1719887345083,6.744,148.28,148.26,100.4523196]
[1719887345282,6.744,148.28,148.26,0.4523196]
[1719887345703,18.944,148.28,148.26,0.4523196]
[1719887346699,6.7444,148.27,148.26,0.4523196]
[1719887346991,26.7444,148.27,148.26,0.4523196]
[1719887347201,32.2,148.27,148.26,0.4523196]
[1719887347393,20.0,148.27,148.26,0.4523196]
[1719887349007,26.7444,148.27,148.26,0.4523196]
[1719887352209,38.9444,148.27,148.26,0.4523196]
[1719887355702,20.0,148.27,148.26,0.4523196]
[1719887365514,38.9444,148.27,148.26,0.4523196]
[1719887366014,18.9444,148.27,148.26,0.4523196]
[1719887366190,38.9444,148.27,148.26,0.4523196]
[1719887368620,45.5493,148.27,148.26,0.4523196]
[1719887375298,26.7444,148.27,148.26,0.4523196]
[1719887375506,38.9444,148.27,148.26,0.4523196]
[1719887377600,26.7444,148.27,148.26,0.4523196]
[1719887377796,38.9444,148.27,148.26,0.4523196]
[1719887385726,26.7444,148.27,148.26,0.4523196]
[1719887385930,38.9444,148.27,148.26,0.4523196]
[1719887387713,20.0,148.27,148.26,100.4523196]
[1719887387923,7.00012911,148.28,148.26,100.4523196]
[1719887388219,6.7437,148.29,148.26,112.6523196]
[1719887388622,6.7437,148.29,148.26,100.4523196]
[1719887392936,18.9437,148.29,148.26,100.4523196]
[1719887393943,12.2,148.27,148.26,100.4523196]
[1719887394713,12.2,148.28,148.26,100.4523196]
[1719887395744,18.9441,148.28,148.26,100.4523196]
[1719887399017,12.2,148.28,148.26,100.4523196]
[1719887400542,6.7436,148.29,148.26,100.4523196]
[1719887400749,32.2,148.28,148.26,100.4523196]
[1719887403048,20.0,148.28,148.26,107.1971196]
[1719887403242,56.62559003,148.33,148.28,100.0]
[1719887403243,7.82559003,148.33,148.28,100.0]
[1719887403435,16.0204,148.38,148.34,100.0]
[1719887403744,12.2,148.38,148.35,6.7407]
[1719887403951,6.739,148.39,148.34,106.7411]
[1719887404153,12.2,148.38,148.34,100.0]
[1719887404447,12.2,148.37,148.34,100.0]
[1719887405727,18.9399,148.37,148.34,100.0]
[1719887406046,20.0,148.36,148.34,100.0]
[1719887409158,26.7405,148.36,148.32,118.9421]
[1719887409361,20.0,148.36,148.32,118.9421]
[1719887409559,26.7404,148.36,148.32,106.7421]
[1719887409749,26.7404,148.36,148.32,118.9421]
[1719887410141,20.0,148.36,148.33,6.7416]
[1719887410343,20.0,148.36,148.32,118.942]
[1719887411355,20.0,148.36,148.33,6.7416]
[1719887412165,20.0,148.36,148.33,18.9416]
[1719887412558,20.0,148.36,148.33,6.7416]
[1719887412763,20.0,148.36,148.34,1.34803635]
[1719887413263,20.0,148.36,148.33,6.7416]
[1719887415040,20.0,148.36,148.34,100.0]
[1719887417369,20.0,148.37,148.34,100.0]
[1719887418072,26.74,148.37,148.34,100.0]
[1719887419583,26.74,148.37,148.32,123.5969]
[1719887419757,26.74,148.37,148.32,135.7969]
[1719887420173,38.94,148.37,148.32,135.7969]
[1719887420677,38.94,148.37,148.34,100.0]
[1719887421575,6.7405,148.36,148.32,135.7969]
[1719887421766,6.7405,148.36,148.32,129.0549]
[1719887421968,6.7409,148.35,148.32,129.0549]
[1719887422160,6.7409,148.35,148.33,0.98139873]
[1719887422361,32.2,148.37,148.33,0.98139873]
[1719887423180,38.9399,148.37,148.33,6.7416]
[1719887424090,6.7405,148.36,148.32,129.0549]
[1719887424267,26.74,148.37,148.34,100.0]
[1719887425089,6.7404,148.36,148.34,100.0]
[1719887433006,6.7408,148.35,148.34,100.0]
[1719887433583,6.7412,148.34,148.32,100.0]
[1719887434725,6.7409,148.35,148.32,100.0]
[1719887435020,6.7404,148.36,148.33,1.34816267]
[1719887437703,6.7409,148.35,148.33,1.34816267]
[1719887439226,6.7405,148.36,148.33,1.34816267]
[1719887443030,18.9405,148.36,148.33,1.34816267]
[1719887443204,6.7408,148.35,148.33,1.34816267]
[1719887443628,6.7408,148.35,148.32,101.34810894]
[1719887444527,6.7408,148.35,148.33,1.34822493]
[1719887446428,6.7403,148.36,148.33,1.34822493]
[1719887448737,6.7403,148.36,148.32,118.9421]
[1719887449921,6.7408,148.35,148.32,112.2]
[1719887450324,6.7405,148.36,148.32,112.2]
[1719887451823,6.7405,148.36,148.32,118.942]
[1719887452858,6.7405,148.36,148.33,1.34810374]
[1719887453037,26.7399,148.37,148.35,100.0]
[1719887453834,20.0,148.37,148.35,106.7406]
[1719887454149,20.0,148.37,148.35,100.0]
[1719887454321,20.0,148.38,148.35,106.7407]
[1719887454526,20.0,148.38,148.35,100.0]
[1719887455741,6.7403,148.36,148.33,100.0]
[1719887455923,1.343018,148.35,148.33,100.0]
[1719887456124,8.083818,148.35,148.33,100.0]
[1719887456444,1.343018,148.35,148.33,100.0]
[1719887458754,1.343018,148.35,148.33,101.34810415]
[1719887460457,1.343018,148.35,148.33,106.7416]
[1719887460649,1.343018,148.35,148.33,118.9416]
[1719887462961,1.343018,148.35,148.34,6.7412]
[1719887463256,1.343018,148.35,148.34,18.9412]
[1719887465266,1.343018,148.35,148.3,106.7429]
[1719887465473,1.343018,148.35,148.3,100.0]
[1719887465474,6.7417,148.33,148.3,100.0]